[Event "GER-ch Youth-U18 2022"]
[Site "Willingen"]
[Date "2022.06.07"]
[Round "4.8"]
[White "Jeschke, Jan"]
[Black "Geltz, Noah"]
[Result "1-0"]
[ECO "B21"]
[WhiteElo "2130"]
[BlackElo "2156"]
[Annotator "TA"]
[PlyCount "113"]
[EventDate "2022.06.05"]
[EventType "swiss"]
[EventRounds "9"]
[EventCountry "GER"]
[SourceTitle "playchess.com"]
[Source "ChessBase"]
[SourceQuality "1"]
[TimeControl "40/4500+30:900+30"]

{[%evp 23,113,-29,0,-8,-10,-12,0,0,0,-27,-18,-16,-4,-25,0,0,45,0,0,0,0,0,0,0,43,9,28,0,8,-20,-14,-16,-8,-19,19,15,21,14,18,8,13,16,42,42,42,42,42,42,42,42,42,42,42,42,42,42,42,42,44,44,44,44,62,62,228,231,404,400,372,330,644,627,814,801,792,818,811,1141,828,777,987,884,6111,5743,29983,29984,29986,29987,29987,29988,29988,29988]} 1. e4 {[%emt 0:00:00]} c5 {[%emt 0:00:00][%cal Bc7c5,Bc5d4][%mdl 32]} 2. d4 {[%emt 0:00:00]} cxd4 {[%emt 0:00:00]} 3. c3 {[%emt 0:00:00]} Nf6 {[%emt 0:00:00]} 4. e5 {[%emt 0:00:00]} Nd5 {[%emt 0:00:00]} 5. Nf3 {[%emt 0:00:00]} e6 {[%emt 0:00:00]} 6. Bc4 {[%emt 0:00:00]} d6 {[%emt 0:00:00]} 7. cxd4 {[%emt 0:00:00]} Be7 {[%emt 0:00:00]} 8. O-O {[%emt 0:00:00]} O-O {[%emt 0:00:00]} 9. Qe2 {[%emt 0:00:00]} Nc6 {[%emt 0:00:00]} 10. Nc3 {[%emt 0:00:00]} Nxc3 {[%emt 0:00:00]} 11. bxc3 {[%emt 0:00:00]} dxe5 {[%emt 0:00:00]} 12. dxe5 {[%emt 0:00:00]} Qa5 {[%emt 0:00:00]} 13. Bd3 {[%emt 0:00:00] B22: Sicilian: 2 c3.} Rd8 {[%emt 0:00:00]} 14. Bd2 {[%emt 0:00:00]} Bd7 {[%emt 0:13:06]} 15. Rfe1 {[%emt 0:01:30] The position is equal.} Be8 {[%emt 0:04:53]} 16. Qe4 {[%emt 0:11:11]} g6 {[%emt 0:00:36]} 17. Bc2 {[%emt 0:03:38][%cal Bd3c2,Bc2b3,Bb3c4][%mdl 32]} Rac8 {[%emt 0:15:17] [#]} 18. Rac1 $146 {[%emt 0:08:47]} ({Predecessor:} 18. h4 Rd5 19. Bb3 Rxd2 20. Nxd2 Qxc3 21. Nf3 Na5 22. Qf4 Nxb3 23. axb3 Qxb3 24. Rxa7 {1-0 (30) Vajda,L (2534)-Rodriguez,S (2252) Chess.com INT 2020}) 18... Qc5 {[%emt 0:09:56]} 19. Qg4 {[%emt 0:22:00]} Rd5 {[%emt 0:04:09][%cal Rc6e5]} 20. Qg3 {[%emt 0:25:36]} Qa5 {[%emt 0:14:10]} 21. Bb3 {[%emt 0:01:14]} Rd3 {[%emt 0:02:33]} 22. Bc4 {[%emt 0:01:50]} Rdd8 {[%emt 0:01:18]} 23. Bg5 {[%emt 0:00:52][%cal Bd2g5,Bg5e7,Be7c5][%mdl 32]} Qc5 {[%emt 0:04:24]} 24. Bf1 {[%emt 0:04:01]} Rd5 {[%emt 0:03:24]} 25. c4 {[%emt 0:01:34]} Rd7 {[%emt 0:00:45]} 26. Qh4 {[%emt 0:04:10]} Nd4 {[%emt 0:01:08] Black wants to play ...Nxf3+.} 27. Nd2 {[%emt 0:01:59] [#] Ne4 is the strong threat.} Nf5 {[%emt 0:04:13]} 28. Bxe7 {[%emt 0:00:16]} Nxh4 {[%emt 0:00:09]} (28... Qa5 {looks sharper.} 29. Qf4 Qxd2 30. Bg5 Qxf4 31. Bxf4 h6) 29. Bxc5 {[%emt 0:00:03]} Rxd2 {[%emt 0:00:09]} 30. Bxa7 {[%emt 0:00:41]} Rxa2 {[%emt 0:03:04]} 31. Ra1 {[%emt 0:00:40]} Rxa1 {[%emt 0:00:55]} 32. Rxa1 {[%emt 0:00:01]} Ra8 {[%emt 0:00:21]} 33. Bd4 {[%emt 0:00:06]} Rxa1 {[%emt 0:00:34]} 34. Bxa1 $14 {[%emt 0:00:51][%mdl 4096] Endgame KBB-KBN} Bc6 {[%emt 0:01:39]} 35. Bc3 {[%emt 0:01:21]} g5 {[%emt 0:01:38]} 36. f3 {[%emt 0:00:19]} Kg7 {[%emt 0:01:17]} 37. Kf2 {[%emt 0:00:06]} Ng6 {[%emt 0:00:54]} 38. g3 {[%emt 0:00:29]} h6 {[%emt 0:01:42]} 39. Ke3 {[%emt 0:00:24]} Kf8 {[%emt 0:02:03]} 40. Bd3 {[%emt 0:01:07]} Ke8 {[%emt 0:00:38]} 41. Be2 {[%emt 0:00:00]} Ne7 {[%emt 0:00:00]} 42. Kd4 {[%emt 0:00:00]} Nf5+ {[%emt 0:00:00]} 43. Kc5 {[%emt 0:00:00]} h5 $2 {[%emt 0:00:00] [#] A mistake that costs the game.} (43... Kd7 $14) 44. Bd2 $1 $18 {[%emt 0:01:49]} h4 $2 {[%emt 0:00:00]} (44... Kd7 45. Bxg5 b6+ 46. Kxb6 Nd4) 45. g4 {[%emt 0:00:28]} Ne7 {[%emt 0:00:00]} 46. Bxg5 {[%emt 0:00:33]} Ng6 $2 {[%emt 0:00:00]} (46... h3 47. Kd6 Nc8+ 48. Kc7 Ne7) 47. Kd6 {[%emt 0:00:45]} h3 {[%emt 0:00:00]} 48. f4 {[%emt 0:01:46][%cal Bf3f4,Bf4f5][%mdl 32]} Be4 {[%emt 0:00:00]} 49. c5 {[%emt 0:00:34]} Bc6 {[%emt 0:00:00]} 50. f5 {[%emt 0:00:20]} Nf8 {[%emt 0:00:00]} 51. Bf1 {[%emt 0:00:36]} Nh7 {[%emt 0:00:00]} 52. Bh4 {[%emt 0:01:27]} exf5 {[%emt 0:04:12]} 53. gxf5 {[%emt 0:00:09]} Bg2 {[%emt 0:00:49]} 54. Bb5+ {[%emt 0:00:11] White mates.} Kf8 {[%emt 0:00:06]} 55. e6 {[%emt 0:00:17]} Bc6 {[%emt 0:00:56]} 56. Bxc6 {[%emt 0:00:33]} bxc6 {[%emt 0:00:07]} 57. Kd7 {[%emt 0:00:08] Weighted Error Value: White=0.06 (flawless) /Black=0.44} 1-0

[Event "GER-ch Youth-U18 2022"]
[Site "Willingen"]
[Date "2022.06.07"]
[Round "4.9"]
[White "Leonard, Timo"]
[Black "Bornholdt, Joa Max"]
[Result "1/2-1/2"]
[ECO "D28"]
[WhiteElo "2018"]
[BlackElo "2155"]
[Annotator "TA"]
[PlyCount "117"]
[EventDate "2022.06.05"]
[EventType "swiss"]
[EventRounds "9"]
[EventCountry "GER"]
[SourceTitle "playchess.com"]
[Source "ChessBase"]
[SourceQuality "1"]
[TimeControl "40/4500+30:900+30"]

{[%evp 16,117,31,22,52,46,54,66,36,26,41,47,44,18,22,41,25,0,56,50,54,53,46,11,41,40,37,47,42,33,41,8,7,7,7,7,41,41,42,36,45,49,56,56,56,56,54,54,62,62,62,54,54,46,64,64,63,63,64,64,64,64,66,54,54,0,71,54,69,66,85,54,54,26,26,27,34,25,78,70,78,78,78,78,102,78,98,78,125,114,112,86,83,0,42,42,42,42,42,42,42,0,0,0]} 1. d4 {[%emt 0:00:00]} d5 {[%emt 0:00:00]} 2. c4 {[%emt 0:00:00]} dxc4 {[%emt 0:00:00]} 3. e3 {[%emt 0:00:00]} Nf6 {[%emt 0:00:00]} 4. Bxc4 {[%emt 0:00:00]} e6 {[%emt 0:00:00]} 5. Nf3 {[%emt 0:00:00]} a6 {[%emt 0:00:00]} 6. O-O {[%emt 0:00:00]} c5 {[%emt 0:00:00]} 7. Qe2 {[%emt 0:00:51]} b5 {[%emt 0:00:00]} 8. Bd3 {[%emt 0:02:46]} Nc6 {[%emt 0:00:06]} 9. a4 {[%emt 0:08:53]} c4 {[%emt 0:02:45] D28: Queen's Gambit Accepted: Classical main line: 7 Qe2 with early ...Nc6.} 10. Bc2 {[%emt 0:01:11]} Bb7 {[%emt 0:00:06]} 11. Nc3 {[%emt 0:24:15]} Qb6 {[%emt 0:06:10] White is slightly better.} 12. axb5 {[%emt 0:01:13]} axb5 {[%emt 0:00:06]} 13. Rxa8+ {[%emt 0:00:03]} Bxa8 {[%emt 0:00:05]} 14. e4 {[%emt 0:03:43]} Nb4 {[%emt 0:14:01]} 15. Bb1 {[%emt 0:00:12]} Be7 {[%emt 0:00:35]} 16. Rd1 {[%emt 0:03:08] [#]} Nd3 $146 {[%emt 0:09:36]} (16... O-O $1 $11) ({Predecessor:} 16... O-O 17. e5 Bxf3 18. Qxf3 Nfd5 19. Qh3 g6 20. Ne4 Qd8 21. Qh6 f5 22. exf6 Bxf6 {1-0 (38) Pazdziora,M (2078)-Wlodarski,M (1914) Leba 2006}) 17. Bxd3 $14 {[%emt 0:12:35]} cxd3 {[%emt 0:00:07]} 18. Qxd3 {[%emt 0:00:15]} ({Don't play} 18. Rxd3 b4 19. e5 bxc3 20. exf6 cxb2 21. Bxb2 gxf6 $11) 18... b4 {[%emt 0:00:20]} 19. Na4 {[%emt 0:00:36]} (19. e5 $5 {[%cal Re5f6]} bxc3 20. exf6 Bxf6 21. bxc3 $14) 19... Qa5 {[%emt 0:00:39]} (19... Qc6 $5 {[%cal Rc6a4]} 20. Nc5 Nxe4 $14) 20. Nc5 {[%emt 0:00:25]} Bxc5 {[%emt 0:04:05]} 21. dxc5 {[%emt 0:00:03] [#] aiming for Qd6.} O-O $1 {[%emt 0:00:52]} 22. e5 {[%emt 0:03:54]} Ne4 {[%emt 0:01:40]} 23. Ng5 {[%emt 0:01:02]} Nxg5 {[%emt 0:01:18]} 24. Bxg5 {[%emt 0:00:04][%cal Bc1g5,Bg5e7,Be7b4,Bb4c3][%mdl 32] next Be7 is good for White.} Qxc5 {[%emt 0:01:02]} 25. Qd6 {[%emt 0:05:25]} Qc6 {[%emt 0:13:08]} 26. Qxc6 {[%emt 0:00:04] Active counter play!} Bxc6 {[%emt 0:00:02][%mdl 4096] Endgame KRB-KRB} 27. Be7 {[%emt 0:00:13][%csl LRb4,LRf8]} Rc8 {[%emt 0:00:17]} 28. Bxb4 {[%emt 0:00:42]} Bd5 {[%emt 0:00:04]} 29. Bc3 {[%emt 0:00:22]} h5 30. f3 {[%emt 0:00:31]} Kh7 {[%emt 0:01:50]} 31. Kf2 {[%emt 0:00:30]} Kg6 {[%emt 0:00:06]} 32. Ke3 {[%emt 0:00:09]} Kf5 {[%emt 0:02:43]} 33. Rd4 {[%emt 0:02:44]} Ra8 {[%emt 0:00:34]} 34. g4+ {[%emt 0:11:16]} hxg4 {[%emt 0:01:36]} 35. Rxg4 {[%emt 0:01:51] [#] h4 is the strong threat.} g5 {[%emt 0:00:38]} 36. h4 {[%emt 0:01:21]} gxh4 {[%emt 0:00:38]} 37. Rxh4 {[%emt 0:00:06]} Kg6 {[%emt 0:03:28] Against Rh6+} 38. Rg4+ {[%emt 0:00:04]} Kh6 {[%emt 0:01:12]} 39. Bb4 {[%emt 0:02:28]} Rb8 {[%emt 0:02:04]} 40. Bc3 {[%emt 0:01:33]} Ra8 $1 {[%emt 0:01:33]} 41. Bd4 {[%emt 0:00:00]} Ra1 {[%emt 0:00:00]} 42. Bc5 {[%emt 0:00:00]} Kh5 {[%emt 0:03:17]} 43. Kf4 {[%emt 0:01:15]} Ra4+ {[%emt 0:06:05]} 44. b4 {[%emt 0:03:23]} (44. Kg3 $5 {[%cal Rg4a4]} Rc4 45. Be3 $14) 44... Ra3 {[%emt 0:01:06][%csl Gd5][%cal Ra3f3]} 45. Rg3 {[%emt 0:01:35]} Rc3 {[%emt 0:00:53]} 46. Bf8 {[%emt 0:02:27] White wants to mate with Rh3+.} Rc4+ {[%emt 0:01:12]} 47. Ke3 {[%emt 0:00:07]} Rc3+ {[%emt 0:05:16]} 48. Kd4 {[%emt 0:00:07]} Rc4+ {[%emt 0:05:02]} 49. Kd3 {[%emt 0:00:06]} Rc7 {[%emt 0:02:19]} 50. Bd6 {[%emt 0:01:19]} Rc6 {[%emt 0:03:19]} 51. Bc5 {[%emt 0:00:33]} Kh4 {[%emt 0:02:57]} (51... Ra6 $142) 52. Rg4+ {[%emt 0:00:13]} Kh5 {[%emt 0:00:07]} 53. Ke3 {[%emt 0:01:12]} Ra6 {[%emt 0:01:43]} 54. Kf4 {[%emt 0:00:34]} Ra3 {[%emt 0:01:12][%csl Gd5][%cal Ra3f3]} 55. Rg5+ {[%emt 0:00:22]} Kh4 {[%emt 0:02:07][%csl Gd5][%cal Ra3f3]} 56. Bf2+ {[%emt 0:01:47]} Kh3 {[%emt 0:00:16][%csl Gd5][%cal Ra3f3]} 57. Rg3+ {[%emt 0:00:08]} Kh4 {[%emt 0:01:29]} 58. b5 {[%emt 0:03:39]} Rb3 $1 {[%emt 0:00:15]} 59. Rg4+ {[%emt 0:01:43] Weighted Error Value: White=0.10 (very precise) /Black=0.10 (very precise)} 1/2-1/2

[Event "GER-ch Youth-U18 2022"]
[Site "Willingen"]
[Date "2022.06.07"]
[Round "4.11"]
[White "Chen, Qingzhi Alexander"]
[Black "Muller, Magnus"]
[Result "0-1"]
[ECO "B40"]
[WhiteElo "1879"]
[BlackElo "1464"]
[Annotator "NA RC COMBH"]
[PlyCount "94"]
[EventDate "2022.06.05"]
[EventType "swiss"]
[EventRounds "9"]
[EventCountry "GER"]
[SourceTitle "playchess.com"]
[Source "ChessBase"]
[SourceQuality "1"]
[TimeControl "40/4500+30:900+30"]

1. e4 {[%emt 0:00:00]} c5 {[%emt 0:00:00]} 2. Nf3 {[%emt 0:00:00]} e6 {[%emt 0:00:00]} 3. d4 {[%emt 0:00:00]} cxd4 {[%emt 0:00:00]} 4. Nxd4 {[%emt 0:00:00]} Nf6 {[%emt 0:00:00]} 5. Nc3 {[%emt 0:00:00]} Nc6 {[%emt 0:00:00]} 6. a3 {[%emt 0:00:00]} d6 {[%emt 0:00:00]} 7. Be3 {[%emt 0:00:00] now scores much better than the old 7.Be2.} a6 {[%emt 0:00:00]} 8. Be2 {[%emt 0:00:00]} Be7 {[%emt 0:00:00]} 9. f4 {[%emt 0:01:13]} Qc7 {[%emt 0:00:00]} 10. g4 {[%emt 0:01:45]} h6 {[%emt 0:02:47]} 11. h4 {[%emt 0:00:09]} b5 {[%emt 0:22:24]} 12. Bf3 {[%emt 0:09:23]} Bb7 {[%emt 0:00:33]} 13. g5 {[%emt 0:01:45]} hxg5 {[%emt 0:00:19]} 14. hxg5 {[%emt 0:00:04]} Rxh1+ {[%emt 0:00:08]} 15. Bxh1 {[%emt 0:00:06]} Nd7 {[%emt 0:01:15] [#]} 16. f5 $146 {[%emt 0:21:14]} ({Predecessor:} 16. Nxc6 Bxc6 17. Qd4 g6 18. O-O-O a5 19. Qh8+ Bf8 20. Bd4 b4 21. Nd5 exd5 22. exd5 {0-1 (34) Draganic,V (2321)-Erdogdu,M (2420) Petrovac 2015}) 16... Nxd4 {[%emt 0:04:45]} 17. Qxd4 {[%emt 0:00:19]} Ne5 {[%emt 0:00:25]} 18. O-O-O {[%emt 0:06:51]} O-O-O {[%emt 0:01:13]} 19. g6 {[%emt 0:06:55]} (19. Bf4 $14) 19... Bf6 {[%emt 0:02:26]} 20. gxf7 {[%emt 0:00:32]} Qxf7 {[%emt 0:02:49]} 21. fxe6 {[%emt 0:02:13]} Qxe6 {[%emt 0:02:33]} 22. Nd5 {[%emt 0:00:28]} Bxd5 {[%emt 0:04:22]} 23. exd5 {[%emt 0:07:00]} Qe7 {[%emt 0:00:49]} 24. c3 {[%emt 0:02:07]} Nc4 {[%emt 0:01:07]} 25. Qg4+ {[%emt 0:01:06]} Kb8 {[%emt 0:00:05]} 26. Bf2 {[%emt 0:05:00] [#]} Rf8 {[%emt 0:07:38]} (26... Re8 $1 $17 27. Rg1 {[#]} Nxb2 $1 {[%mdl 512]} 28. Kxb2 Qe2+ 29. Qxe2 Rxe2+ 30. Kb3 Rxf2) 27. Re1 {[%emt 0:02:06]} Be5 {[%emt 0:06:23]} 28. Bh4 {[%emt 0:01:38]} Qc7 {[%emt 0:00:50]} 29. Kb1 {[%emt 0:04:54] [#]} Nxa3+ $1 {[%emt 0:17:43]} 30. bxa3 {[%emt 0:03:32]} Qxc3 {[%emt 0:00:06]} 31. Rxe5 {[%emt 0:06:24]} Qb3+ {[%emt 0:00:29]} 32. Ka1 {[%emt 0:01:14]} Qxa3+ {[%emt 0:00:04]} 33. Kb1 {[%emt 0:00:04]} Qb3+ {[%emt 0:00:10]} 34. Ka1 {[%emt 0:00:15]} Qc3+ {[%emt 0:00:05]} 35. Ka2 $19 {[%emt 0:00:41]} dxe5 {[%emt 0:04:15]} 36. Qe6 {[%emt 0:02:17]} Qc4+ {[%emt 0:01:29]} 37. Ka3 {[%emt 0:00:43]} b4+ {[%emt 0:00:21]} 38. Ka4 {[%emt 0:00:22]} Qa2+ {[%emt 0:00:15]} 39. Kxb4 {[%emt 0:00:09]} Rf4+ {[%emt 0:00:14]} 40. Kc5 {[%emt 0:00:24]} Qc4+ {[%emt 0:00:55]} 41. Kb6 {[%emt 0:15:41]} Qc7+ {[%emt 0:15:10]} 42. Kxa6 {[%emt 0:00:06]} Ra4+ {[%emt 0:00:07]} 43. Kb5 {[%emt 0:00:05]} Ra5+ {[%emt 0:00:05]} 44. Kb4 {[%emt 0:00:07]} Qc5+ {[%emt 0:00:04]} 45. Kb3 {[%emt 0:00:03]} Ra3+ {[%emt 0:00:05]} 46. Kb2 {[%emt 0:00:03]} Qc3+ {[%emt 0:00:04]} 47. Kb1 {[%emt 0:00:02]} Ra1# 0-1

[Event "GER-ch Youth-U18 2022"]
[Site "Willingen"]
[Date "2022.06.07"]
[Round "4.12"]
[White "Mankel, Luca"]
[Black "Zackrisson, Peter"]
[Result "0-1"]
[ECO "E73"]
[WhiteElo "2010"]
[BlackElo "2015"]
[Annotator "TA"]
[PlyCount "70"]
[EventDate "2022.06.05"]
[EventType "swiss"]
[EventRounds "9"]
[EventCountry "GER"]
[SourceTitle "playchess.com"]
[Source "ChessBase"]
[SourceQuality "1"]
[TimeControl "40/4500+30:900+30"]

{[%evp 11,69,53,69,27,22,38,39,41,36,23,36,13,17,18,22,29,32,-37,0,-196,-52,-72,-32,-40,-41,-22,-16,-131,-69,-92,-86,-103,-88,-110,-97,-89,-110,-58,-25,-216,-224,-663,-623,-722,-809,-772,-668,-696,-672,-1395,-1389,-1179,-565,-1191,-1181,-1178,-529,-29998,-29999,-29999]} 1. d4 {[%emt 0:00:00]} Nf6 {[%emt 0:00:00]} 2. c4 {[%emt 0:00:00]} g6 {[%emt 0:00:00]} 3. Nc3 {[%emt 0:00:00]} Bg7 {[%emt 0:00:00]} 4. e4 {[%emt 0:00:00]} d6 {[%emt 0:00:00]} 5. Be2 {[%emt 0:00:00]} O-O {[%emt 0:00:00]} 6. Be3 {[%emt 0:00:00]} Nc6 {[%emt 0:00:00]} 7. Nf3 {[%emt 0:00:00] E73: King's Indian: Averbakh Variation without 6...c5.} (7. d5 $5 {[%cal Rd5c6]}) 7... Ng4 $1 {[%emt 0:00:00][%mdl 4] is currently scoring better than 7...e5.} 8. Bg5 {[%emt 0:00:00]} h6 {[%emt 0:00:00]} 9. Bh4 {[%emt 0:00:00] White is slightly better.} g5 {[%emt 0:00:00]} 10. Bg3 {[%emt 0:00:00] Strongly threatening d5.} e5 {[%emt 0:00:00]} 11. d5 {[%emt 0:00:00]} Nd4 {[%emt 0:00:00]} 12. h4 {[%emt 0:00:00]} f5 {[%emt 0:01:47][%cal Bf7f5,Bf5f4][%mdl 32]} 13. hxg5 {[%emt 0:00:00]} hxg5 {[%emt 0:05:25] [#]} 14. Nd2 $146 {[%emt 0:14:31]} (14. exf5 $1 $14 Bxf5 15. Nxd4 exd4 16. Nb5) ({Predecessor:} 14. exf5 Bxf5 15. Nxd4 exd4 16. Bxg4 dxc3 17. Bxf5 Rxf5 18. Qh5 Qe8+ 19. Kd1 Qe4 20. bxc3 Qd3+ 21. Kc1 Qxc3+ 22. Kd1 Qxa1+ 23. Kd2 Qc3+ 24. Kd1 Qd3+ 25. Kc1 Qxc4+ {0-1 (25) Halvax,G (2404)-Kollars,D (2637) Chess.com INT 2022}) 14... f4 {[%emt 0:16:24]} 15. Bh2 $2 {[%emt 0:02:12] [#]} (15. Bxg4 $11 {and White stays safe.} fxg3 16. fxg3) 15... Nf6 {[%emt 0:00:15]} ({Black should try} 15... Nxf2 $1 $19 {[%mdl 512]} 16. Kxf2 g4) 16. Nb3 {[%emt 0:02:10]} Re8 {[%emt 0:23:51]} 17. f3 {[%emt 0:04:24]} ({But not} 17. Nxd4 exd4 18. Nb5 (18. Qxd4 $2 Nxe4 19. Qd3 Bf5 $19) 18... Nxe4 $17) 17... c5 {[%emt 0:00:41]} 18. dxc6 {[%emt 0:06:54]} bxc6 {[%emt 0:01:25]} 19. c5 {[%emt 0:00:05]} ({Reject} 19. Nxd4 exd4 20. Na4 c5 $17) (19. Bg1 $1 $11 {keeps the balance.}) 19... Nxe2 {[%emt 0:02:32] Black is much more active. The white rooks are badly placed.} (19... d5 $17 {And now ...a5 would win.} 20. Bd3 (20. Nxd4 $2 exd4 21. Nb5 cxb5 $19) 20... Nxb3 21. axb3 d4) 20. Qxe2 $15 {[%emt 0:00:44]} d5 {[%emt 0:00:57]} 21. O-O-O {[%emt 0:02:20]} Qe7 {[%emt 0:06:28]} 22. exd5 {[%emt 0:08:42]} cxd5 {[%emt 0:00:10]} 23. Nxd5 {[%emt 0:00:05]} Nxd5 {[%emt 0:00:09]} 24. Rxd5 {[%emt 0:00:04]} Be6 {[%emt 0:00:13]} (24... Qf7 $5 {[%cal Rf7d5]} 25. Qd2 Bf5 $15) 25. Rd2 {[%emt 0:01:11] [#] White does not recover from this.} (25. Rd6 $11 {and White is okay.}) 25... a5 $1 $19 {[%emt 0:01:03][%cal Ba7a5,Ba5a4,Ba4a3][%mdl 1056] White must now prevent ...a4. Black has strong compensation.} 26. Kb1 $2 {[%emt 0:03:39]} (26. Rd6 Rac8 27. Kb1) 26... Bf5+ {[%emt 0:02:02]} 27. Ka1 {[%emt 0:00:30]} a4 {[%emt 0:00:20][%mdl 64] Deflection} 28. Nc1 {[%emt 0:01:11]} a3 {[%emt 0:00:31]} 29. Qc4+ {[%emt 0:03:21]} Kf8 {[%emt 0:01:08]} 30. Bg1 {[%emt 0:00:37]} Red8 {[%emt 0:05:11]} 31. Rd6 {[%emt 0:02:21]} Qc7 {[%emt 0:10:16]} (31... Rac8 $142 32. Rb6 e4) 32. Qd5 {[%emt 0:03:43]} axb2+ {[%emt 0:05:20]} 33. Kxb2 {[%emt 0:00:08]} Rxd6 {[%emt 0:00:07]} (33... Rdb8+ $142 34. Nb3 Qa5) 34. cxd6 {[%emt 0:02:45]} Qc2+ {[%emt 0:00:25][%mdl 64] Deflection, Double Attack} 35. Ka1 {[%emt 0:00:01]} Qb1# {Weighted Error Value: White=1.10/Black=0.48} 0-1

[Event "GER-ch Youth-U18 2022"]
[Site "Willingen"]
[Date "2022.06.07"]
[Round "4.13"]
[White "Kallweit, Paul"]
[Black "Rohde, Niclas"]
[Result "1-0"]
[ECO "E32"]
[WhiteElo "1863"]
[BlackElo "1730"]
[Annotator "NA RC COMBH"]
[PlyCount "47"]
[EventDate "2022.06.05"]
[EventType "swiss"]
[EventRounds "9"]
[EventCountry "GER"]
[SourceTitle "playchess.com"]
[Source "ChessBase"]
[SourceQuality "1"]
[TimeControl "40/4500+30:900+30"]

1. d4 {[%emt 0:00:00]} Nf6 {[%emt 0:00:00]} 2. c4 {[%emt 0:00:00]} e6 {[%emt 0:00:00]} 3. Nc3 {[%emt 0:00:00]} Bb4 {[%emt 0:00:00]} 4. Qc2 {[%emt 0:00:00]} O-O {[%emt 0:00:00]} 5. e4 {[%emt 0:00:00]} d5 {[%emt 0:00:00]} 6. e5 {[%emt 0:02:56]} Ne4 {[%emt 0:00:00]} 7. a3 {[%emt 0:01:35]} Bxc3+ {[%emt 0:00:00]} 8. bxc3 {[%emt 0:01:06]} c5 {[%emt 0:08:34]} 9. Bb2 {[%emt 0:03:45]} cxd4 {[%emt 0:09:07]} 10. cxd4 {[%emt 0:00:37]} Qa5+ {[%emt 0:03:16]} 11. Ke2 {[%emt 0:02:44]} f6 {[%emt 0:11:08]} 12. f3 {[%emt 0:08:40]} Ng5 {[%emt 0:01:12]} 13. h4 {[%emt 0:03:26]} Nf7 {[%emt 0:00:15]} 14. exf6 {[%emt 0:01:13]} gxf6 {[%emt 0:01:26]} 15. Kf2 {[%emt 0:03:10]} Bd7 {[%emt 0:10:27]} (15... dxc4 $16 16. Bxc4 Nd6) 16. Bd3 {[%emt 0:11:59]} f5 {[%emt 0:03:24]} 17. Ne2 {[%emt 0:03:26]} Rc8 {[%emt 0:08:55]} (17... dxc4 $142 18. Bxc4 Na6) 18. Bc3 {[%emt 0:05:47]} Qd8 {[%emt 0:04:48]} 19. cxd5 {[%emt 0:04:56]} exd5 {[%emt 0:01:17]} 20. Bxf5 {[%emt 0:03:20]} Bxf5 $18 {[%emt 0:00:22]} 21. Qxf5 {[%emt 0:00:26]} Nc6 {[%emt 0:00:12]} 22. Rh3 {[%emt 0:02:36]} Qe7 {[%emt 0:01:35]} 23. Nf4 {[%emt 0:08:29]} Re8 {[%emt 0:01:58]} 24. Nxd5 {[%emt 0:07:44]} 1-0